[Event "Early-Titled-Tuesday-Blitz-October-10-2023"]
[Site "Chess.com"]
[Date "2023.10.10"]
[Round "6"]
[White "DanielTitichoca"]
[Black "kreonx"]
[Result "1-0"]
[WhiteElo "2634"]
[BlackElo "2463"]
[TimeControl "180+1"]
[EndTime "9:06:08 PDT"]
[Termination "DanielTitichoca won by resignation"]

1. Nf3 {[%clk 0:03:00.9]} 1... g6 {[%clk 0:02:56.8]} 2. g3 {[%clk 0:03:01]} 2...
Bg7 {[%clk 0:02:57.4]} 3. Bg2 {[%clk 0:03:01.7]} 3... e5 {[%clk 0:02:56.7]} 4.
O-O {[%clk 0:03:02.6]} 4... Nc6 {[%clk 0:02:57]} 5. d3 {[%clk 0:03:01.7]} 5...
d5 {[%clk 0:02:56]} 6. c4 {[%clk 0:03:00.4]} 6... Nge7 {[%clk 0:02:56.5]} 7.
cxd5 {[%clk 0:02:58.2]} 7... Nxd5 {[%clk 0:02:57.4]} 8. Bg5 {[%clk 0:02:50.7]}
8... f6 {[%clk 0:02:57.3]} 9. Bd2 {[%clk 0:02:50.8]} 9... Be6 {[%clk 0:02:57.7]}
10. Nc3 {[%clk 0:02:51.3]} 10... O-O {[%clk 0:02:56.2]} 11. Rc1 {[%clk
0:02:51.9]} 11... Nce7 {[%clk 0:02:53.8]} 12. a3 {[%clk 0:02:24.8]} 12... Nxc3
{[%clk 0:02:46.4]} 13. bxc3 {[%clk 0:02:22.6]} 13... c5 {[%clk 0:02:40.6]} 14.
c4 {[%clk 0:02:05.4]} 14... Qd7 {[%clk 0:02:25.8]} 15. a4 {[%clk 0:02:02.9]}
15... Nc6 {[%clk 0:02:14.8]} 16. a5 {[%clk 0:01:55.7]} 16... Rab8 {[%clk
0:02:09.9]} 17. Be3 {[%clk 0:01:46]} 17... Nd4 {[%clk 0:02:01.9]} 18. Nxd4
{[%clk 0:01:38.3]} 18... cxd4 {[%clk 0:01:58.6]} 19. Bd2 {[%clk 0:01:37.7]}
19... Rfc8 {[%clk 0:01:55.6]} 20. Rb1 {[%clk 0:01:37.3]} 20... Bf8 {[%clk
0:01:51.7]} 21. Qb3 {[%clk 0:01:35.6]} 21... b5 {[%clk 0:01:46.4]} 22. axb6
{[%clk 0:01:31.3]} 22... Rxb6 {[%clk 0:01:44.8]} 23. Qa2 {[%clk 0:01:31.3]}
23... Rcb8 {[%clk 0:01:24.8]} 24. Ba5 {[%clk 0:01:12.1]} 24... Rxb1 {[%clk
0:01:18.8]} 25. Rxb1 {[%clk 0:01:13]} 25... Qc8 {[%clk 0:01:13.1]} 26. Bd2
{[%clk 0:01:05.7]} 26... Bc5 {[%clk 0:01:07.5]} 27. h4 {[%clk 0:00:58.3]} 27...
Rb6 {[%clk 0:01:02.4]} 28. Ba5 {[%clk 0:00:54.5]} 28... Qa6 {[%clk 0:00:56.1]}
29. Rb5 {[%clk 0:00:40.1]} 29... Qxb5 {[%clk 0:00:39.7]} 30. Bxb6 {[%clk
0:00:23.6]} 30... Qxb6 {[%clk 0:00:39.5]} 31. Qa4 {[%clk 0:00:24.2]} 31... Kf7
{[%clk 0:00:35.8]} 32. Bc6 {[%clk 0:00:19.7]} 32... f5 {[%clk 0:00:27]} 33. h5
{[%clk 0:00:19.8]} 33... gxh5 {[%clk 0:00:25.9]} 34. Be8+ {[%clk 0:00:19.3]}
34... Kf6 {[%clk 0:00:23.5]} 35. Bxh5 {[%clk 0:00:19.9]} 35... Bf7 {[%clk
0:00:21.5]} 36. Bf3 {[%clk 0:00:12]} 36... Qc7 {[%clk 0:00:19.3]} 37. Qa6+
{[%clk 0:00:09.8]} 37... Bb6 {[%clk 0:00:17.5]} 38. Qb5 {[%clk 0:00:06.8]} 38...
e4 {[%clk 0:00:17.3]} 39. dxe4 {[%clk 0:00:06.5]} 39... Bxc4 {[%clk 0:00:17.8]}
40. Qxf5+ {[%clk 0:00:06.6]} 40... Ke7 {[%clk 0:00:17.7]} 41. e5 {[%clk
0:00:06.4]} 41... Be6 {[%clk 0:00:13.7]} 42. Qf6+ {[%clk 0:00:07]} 42... Ke8
{[%clk 0:00:13.7]} 43. Qxe6+ {[%clk 0:00:06.6]} 43... Qe7 {[%clk 0:00:13.3]} 44.
Bh5+ {[%clk 0:00:07.1]} 44... Kd8 {[%clk 0:00:13.2]} 45. Qd5+ {[%clk 0:00:07.5]}
45... Kc7 {[%clk 0:00:13.4]} 46. Bf3 {[%clk 0:00:07.1]} 46... Qc5 {[%clk
0:00:12.9]} 47. Qe6 {[%clk 0:00:06.7]} 47... a5 {[%clk 0:00:12.6]} 48. Qf7+
{[%clk 0:00:06.6]} 48... Kd8 {[%clk 0:00:11.7]} 49. Bg4 {[%clk 0:00:06.7]} 49...
Qe7 {[%clk 0:00:11.8]} 50. Qd5+ {[%clk 0:00:06.7]} 50... Ke8 {[%clk 0:00:11.9]}
51. e6 {[%clk 0:00:07.3]} 51... Kf8 {[%clk 0:00:12.2]} 52. Bh5 {[%clk
0:00:07.9]} 52... Kg7 {[%clk 0:00:11.9]} 53. Qf5 {[%clk 0:00:08.3]} 53... Qf6
{[%clk 0:00:12.1]} 54. Qe4 {[%clk 0:00:08]} 54... Qg5 {[%clk 0:00:11.6]} 55. Bf3
{[%clk 0:00:08.3]} 55... Qc1+ {[%clk 0:00:11.6]} 56. Kg2 {[%clk 0:00:08.3]}
56... Qc8 {[%clk 0:00:10.9]} 57. e7 {[%clk 0:00:08.7]} 57... Qe8 {[%clk
0:00:11.4]} 58. Bh5 {[%clk 0:00:08.6]} 58... Qxh5 {[%clk 0:00:06.3]} 59. e8=Q
{[%clk 0:00:08.7]} 59... Qxe8 {[%clk 0:00:06.9]} 60. Qxe8 {[%clk 0:00:09]} 60...
Kf6 {[%clk 0:00:06.5]} 61. Qb5 {[%clk 0:00:09.4]} 61... Bd8 {[%clk 0:00:06.1]}
62. Qc6+ {[%clk 0:00:09.5]} 62... Ke7 {[%clk 0:00:05.9]} 63. Qd5 {[%clk
0:00:09.2]} 63... a4 {[%clk 0:00:06.8]} 64. Qxd4 {[%clk 0:00:09.4]} 64... a3
{[%clk 0:00:07.2]} 65. Qb4+ {[%clk 0:00:09.5]} 65... Kf7 {[%clk 0:00:07.5]} 66.
Qxa3 {[%clk 0:00:10]} 66... Be7 {[%clk 0:00:08.4]} 67. Qf3+ {[%clk 0:00:10.4]}
67... Kg6 {[%clk 0:00:08.7]} 68. Qe4+ {[%clk 0:00:11.3]} 68... Kg7 {[%clk
0:00:09.3]} 69. Qxe7+ {[%clk 0:00:10.8]} 69... Kg6 {[%clk 0:00:09.6]} 70. Qh4
{[%clk 0:00:11.4]} 70... Kg7 {[%clk 0:00:10.5]} 71. e4 {[%clk 0:00:11.6]} 71...
h5 {[%clk 0:00:11.4]} 72. f4 {[%clk 0:00:11.3]} 72... Kh6 {[%clk 0:00:12.3]} 73.
e5 {[%clk 0:00:11.8]} 73... Kg6 {[%clk 0:00:13.2]} 74. e6 {[%clk 0:00:12.2]}
74... Kg7 {[%clk 0:00:13.1]} 75. e7 {[%clk 0:00:12.6]} 75... Kf7 {[%clk
0:00:14]} 76. Qxh5+ {[%clk 0:00:12.5]} 76... Kxe7 {[%clk 0:00:13.9]} 77. Qf5
{[%clk 0:00:13.2]} 77... Ke8 {[%clk 0:00:14.1]} 78. g4 {[%clk 0:00:14.1]} 78...
Ke7 {[%clk 0:00:14.8]} 79. g5 {[%clk 0:00:15]} 79... Ke8 {[%clk 0:00:15.7]} 80.
g6 {[%clk 0:00:15.9]} 80... Ke7 {[%clk 0:00:16.6]} 81. g7 {[%clk 0:00:16.4]}
81... Kd6 {[%clk 0:00:17.5]} 1-0

[Event "Early-Titled-Tuesday-Blitz-October-10-2023"]
[Site "Chess.com"]
[Date "2023.10.10"]
[Round "6"]
[White "Gyulamiryan-koryun"]
[Black "Larina_Maria"]
[Result "0-1"]
[WhiteElo "2003"]
[BlackElo "2206"]
[TimeControl "180+1"]
[EndTime "9:06:08 PDT"]
[Termination "Larina_Maria won on time"]

1. e4 {[%clk 0:02:59.3]} 1... c6 {[%clk 0:02:59.7]} 2. Nc3 {[%clk 0:02:58.4]}
2... d5 {[%clk 0:02:59.8]} 3. Nf3 {[%clk 0:02:57.4]} 3... Bg4 {[%clk 0:03:00.3]}
4. h3 {[%clk 0:02:56.8]} 4... Bxf3 {[%clk 0:03:00.3]} 5. Qxf3 {[%clk 0:02:56.7]}
5... e6 {[%clk 0:03:01.1]} 6. exd5 {[%clk 0:02:55.8]} 6... cxd5 {[%clk
0:02:58.5]} 7. d4 {[%clk 0:02:55.4]} 7... a6 {[%clk 0:02:54.9]} 8. Bd3 {[%clk
0:02:51.8]} 8... Nc6 {[%clk 0:02:54.6]} 9. Ne2 {[%clk 0:02:50.2]} 9... Nf6
{[%clk 0:02:49]} 10. c3 {[%clk 0:02:36.1]} 10... Be7 {[%clk 0:02:38.1]} 11. O-O
{[%clk 0:02:33.8]} 11... O-O {[%clk 0:02:38]} 12. Bg5 {[%clk 0:02:18.9]} 12...
Re8 {[%clk 0:02:21.5]} 13. Rac1 {[%clk 0:02:16.4]} 13... b5 {[%clk 0:02:21]} 14.
Bb1 {[%clk 0:02:14.5]} 14... Rc8 {[%clk 0:02:02.8]} 15. Qd3 {[%clk 0:02:11.7]}
15... g6 {[%clk 0:02:02.6]} 16. h4 {[%clk 0:01:58.3]} 16... Na5 {[%clk 0:01:57]}
17. b3 {[%clk 0:01:56.5]} 17... Ne4 {[%clk 0:01:45]} 18. Bxe7 {[%clk 0:01:53]}
18... Qxe7 {[%clk 0:01:45.9]} 19. f3 {[%clk 0:01:50.6]} 19... Nd6 {[%clk
0:01:39]} 20. h5 {[%clk 0:01:47]} 20... Qh4 {[%clk 0:01:35.3]} 21. hxg6 {[%clk
0:01:44.4]} 21... hxg6 {[%clk 0:01:36.2]} 22. Qe3 {[%clk 0:01:33.2]} 22... Kg7
{[%clk 0:01:29.3]} 23. Qe5+ {[%clk 0:01:22.8]} 23... Qf6 {[%clk 0:01:27.1]} 24.
Qxd6 {[%clk 0:01:21.8]} 24... Rh8 {[%clk 0:01:26.8]} 25. Qe5 {[%clk 0:01:21]}
25... Nc6 {[%clk 0:01:26.1]} 26. Qxf6+ {[%clk 0:01:20.7]} 26... Kxf6 {[%clk
0:01:27]} 27. f4 {[%clk 0:01:15.3]} 27... Rh4 {[%clk 0:01:25.5]} 28. g3 {[%clk
0:01:14.4]} 28... Rh3 {[%clk 0:01:25.5]} 29. Kg2 {[%clk 0:01:13.6]} 29... Rch8
{[%clk 0:01:26.3]} 30. Kg1 {[%clk 0:01:14]} 30... Rh2 {[%clk 0:01:26.1]} 31. Rf2
{[%clk 0:01:07.4]} 31... Rh1+ {[%clk 0:01:24.3]} 32. Kg2 {[%clk 0:01:07.1]}
32... R8h2+ {[%clk 0:01:21.2]} 33. Kf3 {[%clk 0:01:07.2]} 33... Rxf2+ {[%clk
0:01:11.9]} 34. Kxf2 {[%clk 0:01:06]} 34... Rh2+ {[%clk 0:01:12.5]} 35. Kf3
{[%clk 0:01:04.8]} 35... Ne7 {[%clk 0:01:04.8]} 36. g4 {[%clk 0:01:04.6]} 36...
Rh3+ {[%clk 0:00:58.4]} 37. Ng3 {[%clk 0:01:04.5]} 37... Rh2 {[%clk 0:00:56.5]}
38. Re1 {[%clk 0:01:02.8]} 38... Rb2 {[%clk 0:00:54.7]} 39. g5+ {[%clk
0:00:55.7]} 39... Kg7 {[%clk 0:00:54.4]} 40. Nf1 {[%clk 0:00:41.2]} 40... Nc6
{[%clk 0:00:53]} 41. Ne3 {[%clk 0:00:39.8]} 41... b4 {[%clk 0:00:51.5]} 42. c4
{[%clk 0:00:38.5]} 42... Nxd4+ {[%clk 0:00:50]} 43. Kg4 {[%clk 0:00:38]} 43...
dxc4 {[%clk 0:00:43.5]} 44. bxc4 {[%clk 0:00:36.2]} 44... a5 {[%clk 0:00:29.9]}
45. Rd1 {[%clk 0:00:33]} 45... Ne2 {[%clk 0:00:19.4]} 46. Rd7 {[%clk 0:00:27.8]}
46... Rxb1 {[%clk 0:00:17.3]} 47. Ra7 {[%clk 0:00:21.5]} 47... Nc3 {[%clk
0:00:14.9]} 48. Rxa5 {[%clk 0:00:19.8]} 48... Rb2 {[%clk 0:00:15]} 49. c5 {[%clk
0:00:18.6]} 49... Nxa2 {[%clk 0:00:12.6]} 50. c6 {[%clk 0:00:16.8]} 50... Rb1
{[%clk 0:00:08.9]} 51. Rxa2 {[%clk 0:00:15.2]} 51... Rc1 {[%clk 0:00:09.5]} 52.
Ra6 {[%clk 0:00:13.8]} 52... b3 {[%clk 0:00:09.6]} 53. Rb6 {[%clk 0:00:11.1]}
53... b2 {[%clk 0:00:08]} 54. Rxb2 {[%clk 0:00:11]} 54... Rxc6 {[%clk
0:00:08.6]} 55. Rd2 {[%clk 0:00:08.3]} 55... Rc3 {[%clk 0:00:08.5]} 56. Kf3
{[%clk 0:00:07.6]} 56... Ra3 {[%clk 0:00:08.2]} 57. Rd7 {[%clk 0:00:07.3]} 57...
Rb3 {[%clk 0:00:07.4]} 58. Ke4 {[%clk 0:00:07.3]} 58... Rb4+ {[%clk 0:00:07.4]}
59. Rd4 {[%clk 0:00:07.2]} 59... Rb3 {[%clk 0:00:07.3]} 60. Ra4 {[%clk
0:00:04.6]} 60... Rb5 {[%clk 0:00:07.3]} 61. Nc4 {[%clk 0:00:03.6]} 61... Rc5
{[%clk 0:00:07.2]} 62. Ne5 {[%clk 0:00:03.6]} 62... Rc7 {[%clk 0:00:04.8]} 63.
Ra8 {[%clk 0:00:03.6]} 63... Rb7 {[%clk 0:00:04.6]} 64. Rd8 {[%clk 0:00:01.2]}
64... Rb4+ {[%clk 0:00:04.6]} 0-1

[Event "Early-Titled-Tuesday-Blitz-October-10-2023"]
[Site "Chess.com"]
[Date "2023.10.10"]
[Round "6"]
[White "akanga001"]
[Black "VOneChess"]
[Result "1-0"]
[WhiteElo "2032"]
[BlackElo "2237"]
[TimeControl "180+1"]
[EndTime "9:06:09 PDT"]
[Termination "akanga001 won on time"]

1. d4 {[%clk 0:02:52.9]} 1... Nf6 {[%clk 0:02:59.2]} 2. c4 {[%clk 0:02:52.7]}
2... e6 {[%clk 0:02:59.4]} 3. Nf3 {[%clk 0:02:52.4]} 3... Bb4+ {[%clk
0:02:57.8]} 4. Bd2 {[%clk 0:02:51.9]} 4... Qe7 {[%clk 0:02:58.1]} 5. g3 {[%clk
0:02:52.1]} 5... b6 {[%clk 0:02:55.8]} 6. Bg2 {[%clk 0:02:52.3]} 6... Bb7 {[%clk
0:02:56.3]} 7. O-O {[%clk 0:02:52.2]} 7... Bxd2 {[%clk 0:02:56.1]} 8. Qxd2
{[%clk 0:02:49.9]} 8... O-O {[%clk 0:02:56.1]} 9. Nc3 {[%clk 0:02:49.5]} 9... d6
{[%clk 0:02:54.7]} 10. Qc2 {[%clk 0:02:48.3]} 10... c5 {[%clk 0:02:53.3]} 11.
dxc5 {[%clk 0:02:47]} 11... dxc5 {[%clk 0:02:48.3]} 12. Rad1 {[%clk 0:02:45.8]}
12... Nbd7 {[%clk 0:02:44.6]} 13. Nb5 {[%clk 0:02:42.1]} 13... Be4 {[%clk
0:02:35.9]} 14. Qc1 {[%clk 0:02:40.2]} 14... Rfd8 {[%clk 0:02:25.1]} 15. Qe3
{[%clk 0:02:09]} 15... Nf8 {[%clk 0:02:19]} 16. Nc3 {[%clk 0:02:02.1]} 16... Bb7
{[%clk 0:02:12.7]} 17. h3 {[%clk 0:02:00.6]} 17... Ng6 {[%clk 0:02:11.6]} 18. g4
{[%clk 0:01:45]} 18... h6 {[%clk 0:02:07.7]} 19. Ne5 {[%clk 0:01:31.4]} 19...
Nxe5 {[%clk 0:02:01.9]} 20. Qxe5 {[%clk 0:01:30.3]} 20... Bxg2 {[%clk
0:01:47.1]} 21. Kxg2 {[%clk 0:01:31.2]} 21... Qb7+ {[%clk 0:01:47.8]} 22. Kg1
{[%clk 0:01:26.9]} 22... Rd7 {[%clk 0:01:39.2]} 23. Rxd7 {[%clk 0:01:24.9]}
23... Nxd7 {[%clk 0:01:37.6]} 24. Qd6 {[%clk 0:01:24.2]} 24... Nf8 {[%clk
0:01:27.2]} 25. Rd1 {[%clk 0:01:23.5]} 25... Ng6 {[%clk 0:01:27.2]} 26. b3
{[%clk 0:01:17.6]} 26... Nh4 {[%clk 0:01:24.3]} 27. f3 {[%clk 0:01:16.7]} 27...
Rc8 {[%clk 0:01:08.8]} 28. Ne4 {[%clk 0:01:14.9]} 28... Qa6 {[%clk 0:00:49.2]}
29. Qd7 {[%clk 0:01:07]} 29... Rf8 {[%clk 0:00:46.9]} 30. Qe7 {[%clk 0:01:06.4]}
30... Ng6 {[%clk 0:00:46.4]} 31. Qc7 {[%clk 0:00:57.3]} 31... Qxa2 {[%clk
0:00:45.7]} 32. Kf2 {[%clk 0:00:52.3]} 32... Qxb3 {[%clk 0:00:45.5]} 33. Rd7
{[%clk 0:00:50.2]} 33... Qxc4 {[%clk 0:00:33.5]} 34. Qxa7 {[%clk 0:00:49.2]}
34... Ne5 {[%clk 0:00:30.4]} 35. Rb7 {[%clk 0:00:43.2]} 35... Qd4+ {[%clk
0:00:25.8]} 36. Kf1 {[%clk 0:00:40.3]} 36... Qd1+ {[%clk 0:00:18.9]} 37. Kf2
{[%clk 0:00:39.3]} 37... Qd4+ {[%clk 0:00:19.5]} 38. Kf1 {[%clk 0:00:38.7]}
38... Nc4 {[%clk 0:00:17.3]} 39. Rd7 {[%clk 0:00:30.9]} 39... Qe3 {[%clk
0:00:04.4]} 40. Qa2 {[%clk 0:00:18.9]} 40... Qc1+ {[%clk 0:00:04.3]} 41. Kf2
{[%clk 0:00:18.6]} 41... Qe3+ {[%clk 0:00:03.1]} 42. Kf1 {[%clk 0:00:18.6]}
42... Ne5 {[%clk 0:00:03.5]} 43. Rd2 {[%clk 0:00:16.3]} 43... Nxf3 {[%clk
0:00:02.5]} 44. exf3 {[%clk 0:00:16.5]} 44... Qxf3+ {[%clk 0:00:03.4]} 45. Nf2
{[%clk 0:00:17.4]} 45... Ra8 {[%clk 0:00:03.7]} 46. Qb2 {[%clk 0:00:15.2]} 46...
c4 {[%clk 0:00:04.2]} 47. Qc2 {[%clk 0:00:14.7]} 47... Ra1+ {[%clk 0:00:03.6]}
48. Rd1 {[%clk 0:00:12.7]} 48... Rxd1+ {[%clk 0:00:02.5]} 49. Qxd1 {[%clk
0:00:13.2]} 49... Qc3 {[%clk 0:00:01.5]} 50. Ke2 {[%clk 0:00:12.6]} 50... Qb2+
{[%clk 0:00:01.3]} 51. Kf1 {[%clk 0:00:11.9]} 51... c3 {[%clk 0:00:01.6]} 52.
Qd8+ {[%clk 0:00:12.8]} 52... Kh7 {[%clk 0:00:01.7]} 53. Qd3+ {[%clk 0:00:12.6]}
53... g6 {[%clk 0:00:02.2]} 54. Qd7 {[%clk 0:00:12.3]} 54... Kg7 {[%clk
0:00:01.9]} 55. Qd4+ {[%clk 0:00:11.9]} 55... Kh7 {[%clk 0:00:02.4]} 56. Nd3
{[%clk 0:00:09.7]} 56... Qb1+ {[%clk 0:00:02.5]} 57. Ke2 {[%clk 0:00:09.8]}
57... c2 {[%clk 0:00:02]} 58. Qc3 {[%clk 0:00:10.1]} 58... Qd1+ {[%clk
0:00:01.6]} 59. Ke3 {[%clk 0:00:10]} 1-0

[Event "Early-Titled-Tuesday-Blitz-October-10-2023"]
[Site "Chess.com"]
[Date "2023.10.10"]
[Round "6"]
[White "Juicy_Fork"]
[Black "AleksandrAleksikov"]
[Result "1-0"]
[WhiteElo "2468"]
[BlackElo "2225"]
[TimeControl "180+1"]
[EndTime "9:06:14 PDT"]
[Termination "Juicy_Fork won on time"]

1. e4 {[%clk 0:02:57.2]} 1... c5 {[%clk 0:02:58.4]} 2. Nf3 {[%clk 0:02:56.8]}
2... d6 {[%clk 0:02:59]} 3. d4 {[%clk 0:02:54.8]} 3... Nf6 {[%clk 0:02:59.4]} 4.
Nc3 {[%clk 0:02:54.2]} 4... cxd4 {[%clk 0:02:58]} 5. Nxd4 {[%clk 0:02:55.1]}
5... a6 {[%clk 0:02:57.6]} 6. Be2 {[%clk 0:02:55.4]} 6... e5 {[%clk 0:02:56.8]}
7. Nb3 {[%clk 0:02:55.2]} 7... Be7 {[%clk 0:02:57.2]} 8. Be3 {[%clk 0:02:55.3]}
8... Be6 {[%clk 0:02:54.9]} 9. Nd5 {[%clk 0:02:54.9]} 9... Bxd5 {[%clk
0:02:48.9]} 10. exd5 {[%clk 0:02:54.8]} 10... Nbd7 {[%clk 0:02:48.9]} 11. Qd3
{[%clk 0:02:54.6]} 11... Rc8 {[%clk 0:02:45]} 12. O-O-O {[%clk 0:02:52.1]} 12...
Nb6 {[%clk 0:02:39.1]} 13. Kb1 {[%clk 0:02:51.8]} 13... Nbxd5 {[%clk 0:02:37.2]}
14. Bd2 {[%clk 0:02:51.3]} 14... Qc7 {[%clk 0:02:27.9]} 15. g4 {[%clk
0:02:50.5]} 15... Nb6 {[%clk 0:02:17.5]} 16. g5 {[%clk 0:02:45.4]} 16... Nfd7
{[%clk 0:02:13.7]} 17. h4 {[%clk 0:02:41.7]} 17... Nc4 {[%clk 0:02:11.1]} 18.
Bc1 {[%clk 0:02:35.8]} 18... b5 {[%clk 0:02:09.5]} 19. h5 {[%clk 0:02:33.2]}
19... Nc5 {[%clk 0:01:51.1]} 20. Nxc5 {[%clk 0:02:16.9]} 20... Qxc5 {[%clk
0:01:47.8]} 21. g6 {[%clk 0:02:16.4]} 21... fxg6 {[%clk 0:01:17.2]} 22. hxg6
{[%clk 0:02:13.7]} 22... h6 {[%clk 0:01:16.8]} 23. Bg4 {[%clk 0:02:09.8]} 23...
Rc7 {[%clk 0:01:14.7]} 24. Be6 {[%clk 0:02:05.6]} 24... Rf8 {[%clk 0:01:11.5]}
25. Bf7+ {[%clk 0:01:52.2]} 25... Kd8 {[%clk 0:01:07.2]} 26. f4 {[%clk
0:01:33.5]} 26... Kc8 {[%clk 0:01:02.6]} 27. Rhf1 {[%clk 0:01:17.4]} 27... Rd8
{[%clk 0:00:56.4]} 28. f5 {[%clk 0:00:44.8]} 28... Bf6 {[%clk 0:00:53.7]} 29.
Qe4 {[%clk 0:00:23.9]} 29... Kb8 {[%clk 0:00:50.7]} 30. Rg1 {[%clk 0:00:12]}
30... Rxf7 {[%clk 0:00:39.9]} 31. gxf7 {[%clk 0:00:11.2]} 31... Rf8 {[%clk
0:00:39.5]} 32. b3 {[%clk 0:00:08.8]} 32... Nb6 {[%clk 0:00:37]} 33. Be3 {[%clk
0:00:08.3]} 33... Qc7 {[%clk 0:00:36.4]} 34. Bxb6 {[%clk 0:00:08.2]} 34... Qxb6
{[%clk 0:00:36.1]} 35. Qd5 {[%clk 0:00:08.8]} 35... Qc7 {[%clk 0:00:35.5]} 36.
Qxd6 {[%clk 0:00:05.4]} 36... Rxf7 {[%clk 0:00:32.4]} 37. Qxa6 {[%clk
0:00:04.9]} 37... Qb7 {[%clk 0:00:31.8]} 38. Qd6+ {[%clk 0:00:04.1]} 38... Qc7
{[%clk 0:00:31.7]} 39. Qxc7+ {[%clk 0:00:04.5]} 39... Rxc7 {[%clk 0:00:30.5]}
40. Rd5 {[%clk 0:00:04.8]} 40... b4 {[%clk 0:00:28.8]} 41. Rg4 {[%clk
0:00:04.7]} 41... Rb7 {[%clk 0:00:28.2]} 42. Kc1 {[%clk 0:00:04.6]} 42... Kc7
{[%clk 0:00:27]} 43. Rc5+ {[%clk 0:00:03.8]} 43... Kd6 {[%clk 0:00:26.6]} 44.
Rcc4 {[%clk 0:00:04.4]} 44... Kd5 {[%clk 0:00:26.2]} 45. Rxb4 {[%clk 0:00:04.6]}
45... Rxb4 {[%clk 0:00:24.6]} 46. Rxb4 {[%clk 0:00:05.5]} 46... e4 {[%clk
0:00:24.8]} 47. Kd1 {[%clk 0:00:04.8]} 47... Ke5 {[%clk 0:00:22.6]} 48. a4
{[%clk 0:00:04.4]} 48... Kxf5 {[%clk 0:00:21.9]} 49. a5 {[%clk 0:00:04.8]} 49...
Bc3 {[%clk 0:00:18.6]} 50. Rb5+ {[%clk 0:00:04.9]} 50... Kf4 {[%clk 0:00:18.6]}
51. a6 {[%clk 0:00:05.8]} 51... Bd4 {[%clk 0:00:17.3]} 52. Rb4 {[%clk
0:00:03.5]} 52... Ba7 {[%clk 0:00:13.8]} 53. Rb7 {[%clk 0:00:03.6]} 53... Bd4
{[%clk 0:00:13.3]} 54. a7 {[%clk 0:00:03.7]} 54... Bxa7 {[%clk 0:00:12.8]} 55.
Rxa7 {[%clk 0:00:04.6]} 55... g5 {[%clk 0:00:10.9]} 56. Ke2 {[%clk 0:00:05]}
56... h5 {[%clk 0:00:10]} 57. Rf7+ {[%clk 0:00:05.9]} 57... Ke5 {[%clk
0:00:09.2]} 58. Ke3 {[%clk 0:00:06.3]} 58... h4 {[%clk 0:00:09.3]} 59. Rh7
{[%clk 0:00:05.9]} 59... Kf5 {[%clk 0:00:08]} 60. b4 {[%clk 0:00:05.8]} 60...
Kg4 {[%clk 0:00:07.3]} 61. Kxe4 {[%clk 0:00:05.2]} 61... Kg3 {[%clk 0:00:07.3]}
62. b5 {[%clk 0:00:05.8]} 62... h3 {[%clk 0:00:07.4]} 63. b6 {[%clk 0:00:05.8]}
63... h2 {[%clk 0:00:07.4]} 64. b7 {[%clk 0:00:05.9]} 64... Kg2 {[%clk
0:00:06.6]} 65. b8=Q {[%clk 0:00:05.7]} 65... h1=Q {[%clk 0:00:04.3]} 66. Rxh1
{[%clk 0:00:06.1]} 66... Kxh1 {[%clk 0:00:04.3]} 67. Qg3 {[%clk 0:00:06.6]} 1-0